[Event "Early-Titled-Tuesday-Blitz-October-17-2023"]
[Site "Chess.com"]
[Date "2023.10.17"]
[Round "4"]
[White "AradNazari"]
[Black "Andrei_Skvortsov"]
[Result "1/2-1/2"]
[WhiteElo "2854"]
[BlackElo "2665"]
[TimeControl "180+1"]
[EndTime "8:43:00 PDT"]
[Termination "Game drawn - insufficient material"]

1. e4 {[%clk 0:03:00.9]} 1... c5 {[%clk 0:02:56.4]} 2. Nf3 {[%clk 0:03:01.4]}
2... d6 {[%clk 0:02:55.8]} 3. Bb5+ {[%clk 0:03:01.9]} 3... Bd7 {[%clk
0:02:54.3]} 4. Bxd7+ {[%clk 0:03:02]} 4... Qxd7 {[%clk 0:02:55]} 5. O-O {[%clk
0:03:02.4]} 5... Nf6 {[%clk 0:02:55.2]} 6. Re1 {[%clk 0:03:03.1]} 6... g6 {[%clk
0:02:55]} 7. c3 {[%clk 0:03:03.8]} 7... Bg7 {[%clk 0:02:54.9]} 8. d4 {[%clk
0:03:04.6]} 8... cxd4 {[%clk 0:02:55.4]} 9. cxd4 {[%clk 0:03:05.4]} 9... O-O
{[%clk 0:02:55.4]} 10. Nc3 {[%clk 0:03:06]} 10... e6 {[%clk 0:02:53.6]} 11. Bg5
{[%clk 0:02:57.4]} 11... h6 {[%clk 0:02:50.2]} 12. Bxf6 {[%clk 0:02:52.4]} 12...
Bxf6 {[%clk 0:02:50.2]} 13. e5 {[%clk 0:02:53]} 13... Bg7 {[%clk 0:02:46.5]} 14.
Ne4 {[%clk 0:02:29.5]} 14... dxe5 {[%clk 0:02:44.7]} 15. dxe5 {[%clk 0:02:28.3]}
15... Qxd1 {[%clk 0:02:44.9]} 16. Raxd1 {[%clk 0:02:28.4]} 16... Nc6 {[%clk
0:02:45.4]} 17. Nd6 {[%clk 0:02:23.5]} 17... Rfd8 {[%clk 0:02:38.2]} 18. Nxb7
{[%clk 0:02:06.1]} 18... Rxd1 {[%clk 0:02:36.6]} 19. Rxd1 {[%clk 0:02:06]} 19...
Nxe5 {[%clk 0:01:56.8]} 20. Nxe5 {[%clk 0:02:04.9]} 20... Bxe5 {[%clk
0:01:57.7]} 21. b4 {[%clk 0:02:05.6]} 21... Rc8 {[%clk 0:01:49.3]} 22. Nc5
{[%clk 0:02:02.7]} 22... Bc7 {[%clk 0:01:38]} 23. g3 {[%clk 0:01:16]} 23... Bb6
{[%clk 0:01:29.6]} 24. Nb3 {[%clk 0:01:16.4]} 24... Rc4 {[%clk 0:01:14.6]} 25.
a3 {[%clk 0:01:08.5]} 25... Rc3 {[%clk 0:01:15]} 26. Rb1 {[%clk 0:01:07.8]}
26... Rc2 {[%clk 0:01:15.6]} 27. Nc5 {[%clk 0:01:08.3]} 27... Bxc5 {[%clk
0:00:51.8]} 28. bxc5 {[%clk 0:01:09.2]} 28... Rxc5 {[%clk 0:00:52.1]} 29. a4
{[%clk 0:00:58.4]} 29... Rc4 {[%clk 0:00:49.3]} 30. a5 {[%clk 0:00:54.9]} 30...
Rc5 {[%clk 0:00:48.7]} 31. a6 {[%clk 0:00:53.9]} 31... Rc6 {[%clk 0:00:47.5]}
32. Ra1 {[%clk 0:00:54.4]} 32... g5 {[%clk 0:00:43.3]} 33. Kg2 {[%clk
0:00:53.9]} 33... Rc3 {[%clk 0:00:41.9]} 34. Ra4 {[%clk 0:00:47.8]} 34... Kh7
{[%clk 0:00:20.5]} 35. Rb4 {[%clk 0:00:41.2]} 35... Rc6 {[%clk 0:00:19.9]} 36.
Rb7 {[%clk 0:00:41.6]} 36... Rxa6 {[%clk 0:00:20.4]} 37. Rxf7+ {[%clk
0:00:41.9]} 37... Kg6 {[%clk 0:00:21]} 38. Re7 {[%clk 0:00:42.2]} 38... Kf6
{[%clk 0:00:21.5]} 39. Rh7 {[%clk 0:00:42.3]} 39... Kg6 {[%clk 0:00:22.2]} 40.
Re7 {[%clk 0:00:42.9]} 40... h5 {[%clk 0:00:22.3]} 41. h4 {[%clk 0:00:41.5]}
41... gxh4 {[%clk 0:00:21.7]} 42. gxh4 {[%clk 0:00:42.4]} 42... Kf6 {[%clk
0:00:21.5]} 43. Rh7 {[%clk 0:00:42.2]} 43... Ra5 {[%clk 0:00:22.1]} 44. Kg3
{[%clk 0:00:27.2]} 44... a6 {[%clk 0:00:21.4]} 45. Ra7 {[%clk 0:00:27.3]} 45...
Ra3+ {[%clk 0:00:20.7]} 46. f3 {[%clk 0:00:25.7]} 46... a5 {[%clk 0:00:18.8]}
47. Ra8 {[%clk 0:00:23.3]} 47... Ra1 {[%clk 0:00:17.8]} 48. Rh8 {[%clk
0:00:21.2]} 48... Kg6 {[%clk 0:00:14.2]} 49. Rg8+ {[%clk 0:00:20.6]} 49... Kf6
{[%clk 0:00:13.4]} 50. Rh8 {[%clk 0:00:17.7]} 50... Kg6 {[%clk 0:00:12.9]} 51.
Rg8+ {[%clk 0:00:17.9]} 51... Kh6 {[%clk 0:00:13.1]} 52. Rh8+ {[%clk 0:00:10.9]}
52... Kg7 {[%clk 0:00:13.3]} 53. Rxh5 {[%clk 0:00:10.9]} 53... a4 {[%clk
0:00:13.1]} 54. Kf4 {[%clk 0:00:11]} 54... a3 {[%clk 0:00:11.1]} 55. Ra5 {[%clk
0:00:07.8]} 55... Kf6 {[%clk 0:00:11.5]} 56. Ra6 {[%clk 0:00:07.3]} 56... a2
{[%clk 0:00:11.6]} 57. h5 {[%clk 0:00:07.8]} 57... Kf7 {[%clk 0:00:10.6]} 58.
Ra7+ {[%clk 0:00:06.4]} 58... Kf6 {[%clk 0:00:08.9]} 59. Ra6 {[%clk 0:00:07]}
59... Ke7 {[%clk 0:00:08.7]} 60. Ra7+ {[%clk 0:00:06.4]} 60... Kd6 {[%clk
0:00:09]} 61. Ra6+ {[%clk 0:00:06.6]} 61... Kd5 {[%clk 0:00:09]} 62. h6 {[%clk
0:00:07.2]} 62... e5+ {[%clk 0:00:08]} 63. Kf5 {[%clk 0:00:07.5]} 63... Rf1
{[%clk 0:00:07.1]} 64. Rxa2 {[%clk 0:00:07.6]} 64... Rxf3+ {[%clk 0:00:07.1]}
65. Kg4 {[%clk 0:00:05.8]} 65... Rf8 {[%clk 0:00:04.6]} 66. Rh2 {[%clk
0:00:06.2]} 66... Rh8 {[%clk 0:00:04.1]} 67. Kf5 {[%clk 0:00:06.3]} 67... e4
{[%clk 0:00:04.4]} 68. Rd2+ {[%clk 0:00:02.7]} 68... Kc4 {[%clk 0:00:04.4]} 69.
Rh2 {[%clk 0:00:02.7]} 69... e3 {[%clk 0:00:04.8]} 70. Kf4 {[%clk 0:00:02.7]}
70... e2 {[%clk 0:00:05.2]} 71. Rxe2 {[%clk 0:00:03]} 71... Rxh6 {[%clk
0:00:05.3]} 72. Rg2 {[%clk 0:00:03.6]} 72... Rc6 {[%clk 0:00:05.6]} 73. Rg4
{[%clk 0:00:04.2]} 73... Kb5 {[%clk 0:00:06.3]} 74. Ke5 {[%clk 0:00:04.7]} 74...
Rc5+ {[%clk 0:00:06.9]} 75. Kd6 {[%clk 0:00:05.3]} 75... Rc6+ {[%clk 0:00:07.5]}
76. Kd7 {[%clk 0:00:05.9]} 76... Rc4 {[%clk 0:00:07.5]} 77. Rxc4 {[%clk
0:00:06.1]} 77... Kxc4 {[%clk 0:00:07.8]} 1/2-1/2

[Event "Early-Titled-Tuesday-Blitz-October-17-2023"]
[Site "Chess.com"]
[Date "2023.10.17"]
[Round "4"]
[White "KNVB"]
[Black "Szczor"]
[Result "1/2-1/2"]
[WhiteElo "2681"]
[BlackElo "2535"]
[TimeControl "180+1"]
[EndTime "8:43:02 PDT"]
[Termination "Game drawn by repetition"]

1. d4 {[%clk 0:03:00.9]} 1... Nf6 {[%clk 0:02:59.7]} 2. Nc3 {[%clk 0:02:59.7]}
2... d5 {[%clk 0:02:59.3]} 3. Bf4 {[%clk 0:02:59.6]} 3... e6 {[%clk 0:02:58.8]}
4. Nb5 {[%clk 0:02:56.8]} 4... Na6 {[%clk 0:02:47.1]} 5. e3 {[%clk 0:02:56.8]}
5... c6 {[%clk 0:02:40.1]} 6. Nc3 {[%clk 0:02:56.9]} 6... Nc7 {[%clk 0:02:39.4]}
7. Nf3 {[%clk 0:02:51.3]} 7... Bd6 {[%clk 0:02:37.1]} 8. Bd3 {[%clk 0:02:39.5]}
8... O-O {[%clk 0:02:33.5]} 9. O-O {[%clk 0:02:39.3]} 9... Bxf4 {[%clk
0:02:27.5]} 10. exf4 {[%clk 0:02:40.2]} 10... Qd6 {[%clk 0:02:21.8]} 11. Ne5
{[%clk 0:02:29.8]} 11... b6 {[%clk 0:02:08.6]} 12. a4 {[%clk 0:01:08.4]} 12...
c5 {[%clk 0:01:57.2]} 13. Qf3 {[%clk 0:00:45.8]} 13... cxd4 {[%clk 0:01:28.2]}
14. Nb5 {[%clk 0:00:33.9]} 14... Nxb5 {[%clk 0:01:26.7]} 15. axb5 {[%clk
0:00:34.8]} 15... Bb7 {[%clk 0:01:09.8]} 16. Ra4 {[%clk 0:00:31.5]} 16... Qc5
{[%clk 0:00:58.1]} 17. Rfa1 {[%clk 0:00:27.3]} 17... Ne4 {[%clk 0:00:33.3]} 18.
Nd7 {[%clk 0:00:25.6]} 18... Qc7 {[%clk 0:00:23.2]} 19. Nxf8 {[%clk 0:00:25.1]}
19... Rxf8 {[%clk 0:00:24.1]} 20. Rxa7 {[%clk 0:00:23.5]} 20... Qb8 {[%clk
0:00:23]} 21. Qe2 {[%clk 0:00:06]} 21... Re8 {[%clk 0:00:20.2]} 22. g3 {[%clk
0:00:04.3]} 22... f6 {[%clk 0:00:20.2]} 23. f3 {[%clk 0:00:03]} 23... Nd6 {[%clk
0:00:19]} 24. Qf2 {[%clk 0:00:01.9]} 24... e5 {[%clk 0:00:19.2]} 25. R7a4 {[%clk
0:00:01.8]} 25... e4 {[%clk 0:00:18.1]} 26. Bf1 {[%clk 0:00:01.8]} 26... d3
{[%clk 0:00:11.4]} 27. cxd3 {[%clk 0:00:02]} 27... e3 {[%clk 0:00:12]} 28. Qe1
{[%clk 0:00:02.5]} 28... Nxb5 {[%clk 0:00:12.6]} 29. d4 {[%clk 0:00:02.5]} 29...
Nd6 {[%clk 0:00:10.6]} 30. Be2 {[%clk 0:00:02.4]} 30... b5 {[%clk 0:00:10.1]}
31. Rb4 {[%clk 0:00:02.5]} 31... Bc6 {[%clk 0:00:09.5]} 32. b3 {[%clk
0:00:02.7]} 32... Qb6 {[%clk 0:00:08.1]} 33. Rc1 {[%clk 0:00:02.9]} 33... Nf5
{[%clk 0:00:07.6]} 34. Kg2 {[%clk 0:00:03]} 34... Nxd4 {[%clk 0:00:07.9]} 35.
Rxd4 {[%clk 0:00:02.6]} 35... Qxd4 {[%clk 0:00:08.8]} 36. Rxc6 {[%clk
0:00:03.2]} 36... Qd2 {[%clk 0:00:08.4]} 37. Qxd2 {[%clk 0:00:02.2]} 37... exd2
{[%clk 0:00:09.3]} 38. Kf2 {[%clk 0:00:02.9]} 38... d4 {[%clk 0:00:09.1]} 39.
Rc2 {[%clk 0:00:02.2]} 39... d3 {[%clk 0:00:09.7]} 40. Rxd2 {[%clk 0:00:02.4]}
40... dxe2 {[%clk 0:00:09.8]} 41. Rxe2 {[%clk 0:00:03.3]} 41... Rc8 {[%clk
0:00:09.9]} 42. f5 {[%clk 0:00:02.7]} 42... Rc3 {[%clk 0:00:09.6]} 43. Re3
{[%clk 0:00:02.8]} 43... Rc2+ {[%clk 0:00:10]} 44. Kg1 {[%clk 0:00:02.5]} 44...
Rb2 {[%clk 0:00:10]} 45. g4 {[%clk 0:00:02.2]} 45... Kf7 {[%clk 0:00:10.3]} 46.
h4 {[%clk 0:00:02.5]} 46... g6 {[%clk 0:00:09.7]} 47. fxg6+ {[%clk 0:00:02.7]}
47... hxg6 {[%clk 0:00:10.6]} 48. Kf1 {[%clk 0:00:02.8]} 48... f5 {[%clk
0:00:10.7]} 49. gxf5 {[%clk 0:00:02.6]} 49... gxf5 {[%clk 0:00:11.6]} 50. Re5
{[%clk 0:00:03.3]} 50... Rxb3 {[%clk 0:00:11.7]} 51. Rxf5+ {[%clk 0:00:03.8]}
51... Kg6 {[%clk 0:00:12.3]} 52. Rg5+ {[%clk 0:00:03.9]} 52... Kf6 {[%clk
0:00:12.2]} 53. Kg2 {[%clk 0:00:04.4]} 53... b4 {[%clk 0:00:12.5]} 54. Rb5
{[%clk 0:00:04.6]} 54... Rb1 {[%clk 0:00:12.7]} 55. Kg3 {[%clk 0:00:04.4]} 55...
b3 {[%clk 0:00:12.2]} 56. Kf4 {[%clk 0:00:04.8]} 56... b2 {[%clk 0:00:12.6]} 57.
Rb6+ {[%clk 0:00:05]} 57... Kf7 {[%clk 0:00:13.1]} 58. h5 {[%clk 0:00:04.1]}
58... Rh1 {[%clk 0:00:12.4]} 59. Rb7+ {[%clk 0:00:04.1]} 59... Kf6 {[%clk
0:00:11.8]} 60. Rb6+ {[%clk 0:00:03.6]} 60... Kf7 {[%clk 0:00:11.3]} 61. Rxb2
{[%clk 0:00:02.7]} 61... Rxh5 {[%clk 0:00:10.8]} 62. Rb7+ {[%clk 0:00:03.4]}
62... Kf6 {[%clk 0:00:10.7]} 63. Rb6+ {[%clk 0:00:03.7]} 63... Kf7 {[%clk
0:00:11.2]} 64. Rb7+ {[%clk 0:00:02.8]} 64... Kf6 {[%clk 0:00:11.4]} 65. Kg4
{[%clk 0:00:02.2]} 65... Ra5 {[%clk 0:00:11.2]} 66. Rb6+ {[%clk 0:00:01.9]}
66... Kf7 {[%clk 0:00:11.3]} 67. Rc6 {[%clk 0:00:02.1]} 67... Kg7 {[%clk
0:00:11.2]} 68. Rd6 {[%clk 0:00:02]} 68... Kf7 {[%clk 0:00:11.6]} 69. Rb6 {[%clk
0:00:02.5]} 69... Kg7 {[%clk 0:00:11.9]} 70. Kg3 {[%clk 0:00:02.6]} 70... Kf7
{[%clk 0:00:12.3]} 71. Kh3 {[%clk 0:00:02.4]} 71... Ra4 {[%clk 0:00:12.3]} 72.
Kg3 {[%clk 0:00:02.7]} 72... Kg7 {[%clk 0:00:12.6]} 73. Rc6 {[%clk 0:00:03.2]}
73... Kf7 {[%clk 0:00:12.8]} 74. f4 {[%clk 0:00:03.9]} 74... Kg7 {[%clk
0:00:13.2]} 75. Kg4 {[%clk 0:00:04.4]} 75... Ra5 {[%clk 0:00:13.4]} 76. Rb6
{[%clk 0:00:05]} 76... Kf7 {[%clk 0:00:13.6]} 77. Rb7+ {[%clk 0:00:05.3]} 77...
Kf6 {[%clk 0:00:13.8]} 78. Rb6+ {[%clk 0:00:06.1]} 78... Kf7 {[%clk 0:00:14.3]}
79. Rc6 {[%clk 0:00:06.9]} 79... Kg7 {[%clk 0:00:14.5]} 80. Kh4 {[%clk
0:00:07.3]} 80... Kf7 {[%clk 0:00:14.9]} 81. Rd6 {[%clk 0:00:08]} 81... Kg7
{[%clk 0:00:15.3]} 82. Rd2 {[%clk 0:00:05.7]} 82... Kf7 {[%clk 0:00:15.5]} 83.
Kg4 {[%clk 0:00:06.4]} 83... Kf6 {[%clk 0:00:15.6]} 84. Rh2 {[%clk 0:00:06.9]}
84... Kf7 {[%clk 0:00:15.4]} 85. Rh6 {[%clk 0:00:06]} 85... Kg7 {[%clk
0:00:15.5]} 86. Rb6 {[%clk 0:00:03.8]} 86... Kf7 {[%clk 0:00:15.8]} 1/2-1/2

[Event "Early-Titled-Tuesday-Blitz-October-17-2023"]
[Site "Chess.com"]
[Date "2023.10.17"]
[Round "4"]
[White "vishwa_vijeta"]
[Black "jk13"]
[Result "0-1"]
[WhiteElo "2527"]
[BlackElo "2686"]
[TimeControl "180+1"]
[EndTime "8:43:03 PDT"]
[Termination "jk13 won by checkmate"]

1. e4 {[%clk 0:03:00.9]} 1... e5 {[%clk 0:02:58.1]} 2. Nf3 {[%clk 0:03:00.6]}
2... Nc6 {[%clk 0:02:57.4]} 3. d4 {[%clk 0:02:59.8]} 3... exd4 {[%clk
0:02:57.3]} 4. Nxd4 {[%clk 0:02:56.6]} 4... Bb4+ {[%clk 0:02:57]} 5. c3 {[%clk
0:02:53.5]} 5... Bc5 {[%clk 0:02:57.6]} 6. Nxc6 {[%clk 0:02:51.7]} 6... bxc6
{[%clk 0:02:56.7]} 7. Bc4 {[%clk 0:02:49.5]} 7... Qh4 {[%clk 0:02:56.3]} 8. O-O
{[%clk 0:02:47]} 8... Nf6 {[%clk 0:02:56.8]} 9. Nd2 {[%clk 0:02:37]} 9... Ng4
{[%clk 0:02:24.4]} 10. Nf3 {[%clk 0:02:34]} 10... Nxf2 {[%clk 0:02:21.7]} 11.
Bxf7+ {[%clk 0:02:16.8]} 11... Kd8 {[%clk 0:02:07.6]} 12. Qe2 {[%clk 0:01:31]}
12... Nxe4+ {[%clk 0:01:02]} 13. Be3 {[%clk 0:01:29.7]} 13... Ba6 {[%clk
0:00:35.9]} 14. Qe1 {[%clk 0:01:04.5]} 14... Qxe1 {[%clk 0:00:35.1]} 15. Rfxe1
{[%clk 0:01:05.4]} 15... Bxe3+ {[%clk 0:00:34.6]} 16. Rxe3 {[%clk 0:01:06.3]}
16... Nd6 {[%clk 0:00:34.1]} 17. Ne5 {[%clk 0:01:05.4]} 17... Rf8 {[%clk
0:00:32.6]} 18. Rae1 {[%clk 0:00:57.7]} 18... Kc8 {[%clk 0:00:32]} 19. Bb3
{[%clk 0:00:56.7]} 19... Rb8 {[%clk 0:00:27.4]} 20. Rd1 {[%clk 0:00:53.3]} 20...
Rb5 {[%clk 0:00:25.1]} 21. c4 {[%clk 0:00:38.2]} 21... Rc5 {[%clk 0:00:23.4]}
22. Ree1 {[%clk 0:00:22]} 22... Re8 {[%clk 0:00:18]} 23. Nd3 {[%clk 0:00:22]}
23... Rf5 {[%clk 0:00:16.4]} 24. Rxe8+ {[%clk 0:00:19.9]} 24... Nxe8 {[%clk
0:00:17.3]} 25. Nb4 {[%clk 0:00:18.1]} 25... Bb7 {[%clk 0:00:16.8]} 26. Bc2
{[%clk 0:00:18.4]} 26... Rh5 {[%clk 0:00:15.9]} 27. h3 {[%clk 0:00:17.7]} 27...
Nf6 {[%clk 0:00:15.9]} 28. b3 {[%clk 0:00:17.9]} 28... Re5 {[%clk 0:00:16.1]}
29. Nd3 {[%clk 0:00:17.2]} 29... Re3 {[%clk 0:00:15.4]} 30. Bb1 {[%clk
0:00:17.7]} 30... c5 {[%clk 0:00:15.1]} 31. Nxc5 {[%clk 0:00:18.1]} 31... Bc6
{[%clk 0:00:15.4]} 32. Kf2 {[%clk 0:00:14.9]} 32... Re5 {[%clk 0:00:13.9]} 33.
Nd3 {[%clk 0:00:15.2]} 33... Rf5+ {[%clk 0:00:14.2]} 34. Kg1 {[%clk 0:00:14.4]}
34... h5 {[%clk 0:00:12.6]} 35. Rf1 {[%clk 0:00:13.1]} 35... Rg5 {[%clk
0:00:12.6]} 36. Nf4 {[%clk 0:00:13.1]} 36... Ne4 {[%clk 0:00:11.2]} 37. Re1
{[%clk 0:00:12.7]} 37... Nc3 {[%clk 0:00:11.1]} 38. Bd3 {[%clk 0:00:12.1]} 38...
Rg3 {[%clk 0:00:09.4]} 39. Kf2 {[%clk 0:00:07.1]} 39... h4 {[%clk 0:00:09.9]}
40. Bb1 {[%clk 0:00:01.8]} 40... a5 {[%clk 0:00:09.3]} 41. Bf5 {[%clk
0:00:01.4]} 41... Nxa2 {[%clk 0:00:09]} 42. Re8+ {[%clk 0:00:02.2]} 42... Kb7
{[%clk 0:00:09.1]} 43. Be4 {[%clk 0:00:02.9]} 43... Bxe4 {[%clk 0:00:08.1]} 44.
Rxe4 {[%clk 0:00:03.8]} 44... Nc3 {[%clk 0:00:08]} 45. Re5 {[%clk 0:00:04.4]}
45... Ka6 {[%clk 0:00:07.6]} 46. Rf5 {[%clk 0:00:03.7]} 46... c6 {[%clk
0:00:07.4]} 47. Nh5 {[%clk 0:00:04.1]} 47... Rg6 {[%clk 0:00:06.9]} 48. Nf4
{[%clk 0:00:04.3]} 48... Rf6 {[%clk 0:00:06.3]} 49. Rxf6 {[%clk 0:00:04.9]}
49... gxf6 {[%clk 0:00:07.2]} 50. Nh5 {[%clk 0:00:05.8]} 50... d5 {[%clk
0:00:06.8]} 51. Nxf6 {[%clk 0:00:05.6]} 51... dxc4 {[%clk 0:00:07]} 52. bxc4
{[%clk 0:00:05.8]} 52... a4 {[%clk 0:00:07.7]} 53. Nd7 {[%clk 0:00:06.2]} 53...
Ka5 {[%clk 0:00:07.4]} 54. Nc5 {[%clk 0:00:06.8]} 54... Kb4 {[%clk 0:00:08]} 55.
Nxa4 {[%clk 0:00:07.1]} 55... Nxa4 {[%clk 0:00:07.8]} 56. g3 {[%clk 0:00:07.7]}
56... hxg3+ {[%clk 0:00:07.6]} 57. Kxg3 {[%clk 0:00:08.6]} 57... Kxc4 {[%clk
0:00:08.2]} 58. Kf4 {[%clk 0:00:07.9]} 58... Kd5 {[%clk 0:00:08.5]} 59. Kf5
{[%clk 0:00:08.1]} 59... Nc5 {[%clk 0:00:07.1]} 60. h4 {[%clk 0:00:08.4]} 60...
Ne6 {[%clk 0:00:07.3]} 61. Kf6 {[%clk 0:00:08.8]} 61... Nf4 {[%clk 0:00:06.6]}
62. Kf5 {[%clk 0:00:08.8]} 62... Nh5 {[%clk 0:00:04.8]} 63. Kg6 {[%clk
0:00:07.6]} 63... Ng3 {[%clk 0:00:05]} 64. Kg5 {[%clk 0:00:08.1]} 64... Ke6
{[%clk 0:00:04.9]} 65. Kg4 {[%clk 0:00:08.3]} 65... Nf5 {[%clk 0:00:05.4]} 66.
h5 {[%clk 0:00:08.7]} 66... Kf6 {[%clk 0:00:05.4]} 67. Kf4 {[%clk 0:00:08.8]}
67... Ne7 {[%clk 0:00:05.5]} 68. h6 {[%clk 0:00:07.4]} 68... Kg6 {[%clk
0:00:05.8]} 69. Ke5 {[%clk 0:00:07.9]} 69... Kxh6 {[%clk 0:00:06.2]} 70. Kd6
{[%clk 0:00:08.4]} 70... Kg5 {[%clk 0:00:06.7]} 71. Kxe7 {[%clk 0:00:08.5]}
71... c5 {[%clk 0:00:07.2]} 72. Kd6 {[%clk 0:00:09.4]} 72... c4 {[%clk
0:00:08.1]} 73. Kc5 {[%clk 0:00:10]} 73... c3 {[%clk 0:00:09]} 74. Kc4 {[%clk
0:00:10.9]} 74... c2 {[%clk 0:00:09.9]} 75. Kc3 {[%clk 0:00:11.8]} 75... c1=Q+
{[%clk 0:00:10.8]} 76. Kb3 {[%clk 0:00:12.2]} 76... Qf4 {[%clk 0:00:11.7]} 77.
Ka3 {[%clk 0:00:12.4]} 77... Kf5 {[%clk 0:00:12.6]} 78. Ka2 {[%clk 0:00:13.3]}
78... Ke5 {[%clk 0:00:13.5]} 79. Ka1 {[%clk 0:00:14.2]} 79... Kd5 {[%clk
0:00:14.4]} 80. Ka2 {[%clk 0:00:15.1]} 80... Qc4+ {[%clk 0:00:15.3]} 81. Ka1
{[%clk 0:00:16]} 81... Qb5 {[%clk 0:00:16.2]} 82. Ka2 {[%clk 0:00:16.9]} 82...
Kc4 {[%clk 0:00:17.1]} 83. Ka1 {[%clk 0:00:17.8]} 83... Kc3 {[%clk 0:00:18]} 84.
Ka2 {[%clk 0:00:18.7]} 84... Qb2# {[%clk 0:00:16.8]} 0-1

[Event "Early-Titled-Tuesday-Blitz-October-17-2023"]
[Site "Chess.com"]
[Date "2023.10.17"]
[Round "4"]
[White "WindWhistler11"]
[Black "MdSharifHossain"]
[Result "0-1"]
[WhiteElo "2458"]
[BlackElo "2209"]
[TimeControl "180+1"]
[EndTime "8:43:17 PDT"]
[Termination "MdSharifHossain won on time"]

1. Nf3 {[%clk 0:02:59.6]} 1... Nf6 {[%clk 0:02:58.9]} 2. g3 {[%clk 0:02:58]}
2... e6 {[%clk 0:02:59.2]} 3. d3 {[%clk 0:02:58.2]} 3... d5 {[%clk 0:03:00]} 4.
Nbd2 {[%clk 0:02:58.7]} 4... Bb4 {[%clk 0:02:55.2]} 5. c3 {[%clk 0:02:58.7]}
5... Bc5 {[%clk 0:02:49.4]} 6. Nb3 {[%clk 0:02:58.8]} 6... Bb6 {[%clk
0:02:49.1]} 7. Bg2 {[%clk 0:02:59.1]} 7... O-O {[%clk 0:02:46.1]} 8. O-O {[%clk
0:02:59.3]} 8... a5 {[%clk 0:02:41.9]} 9. a4 {[%clk 0:02:57.1]} 9... c5 {[%clk
0:02:40.4]} 10. Qc2 {[%clk 0:02:56.8]} 10... Nc6 {[%clk 0:02:38.7]} 11. e4
{[%clk 0:02:52.6]} 11... c4 {[%clk 0:02:37.4]} 12. dxc4 {[%clk 0:02:49.8]} 12...
Nxe4 {[%clk 0:02:21.6]} 13. cxd5 {[%clk 0:02:47.6]} 13... exd5 {[%clk
0:02:21.6]} 14. Be3 {[%clk 0:02:37.3]} 14... Bf5 {[%clk 0:02:11.7]} 15. Nh4
{[%clk 0:02:32.6]} 15... Bg6 {[%clk 0:01:52.4]} 16. Nxg6 {[%clk 0:02:29.3]}
16... hxg6 {[%clk 0:01:52.3]} 17. Bxe4 {[%clk 0:02:11.9]} 17... dxe4 {[%clk
0:01:51]} 18. Qxe4 {[%clk 0:02:07.9]} 18... Re8 {[%clk 0:01:46.6]} 19. Qf4
{[%clk 0:02:04.9]} 19... Ne5 {[%clk 0:01:36]} 20. Rad1 {[%clk 0:01:59.2]} 20...
Qc7 {[%clk 0:01:22.6]} 21. Bd4 {[%clk 0:01:47.1]} 21... g5 {[%clk 0:01:01.8]}
22. Qe4 {[%clk 0:01:33.6]} 22... Bxd4 {[%clk 0:00:57.6]} 23. Nxd4 {[%clk
0:01:30.3]} 23... g4 {[%clk 0:00:53.7]} 24. Kg2 {[%clk 0:01:19.8]} 24... Qc4
{[%clk 0:00:46.1]} 25. Rfe1 {[%clk 0:01:12.4]} 25... Nf3 {[%clk 0:00:37.7]} 26.
Qxe8+ {[%clk 0:01:06.2]} 26... Rxe8 {[%clk 0:00:37.3]} 27. Rxe8+ {[%clk
0:01:07.1]} 27... Kh7 {[%clk 0:00:38.1]} 28. Re3 {[%clk 0:00:52]} 28... Qd5
{[%clk 0:00:34.9]} 29. Kf1 {[%clk 0:00:38.1]} 29... Nxh2+ {[%clk 0:00:29.4]} 30.
Ke2 {[%clk 0:00:38.3]} 30... Qc4+ {[%clk 0:00:27]} 31. Kd2 {[%clk 0:00:35.9]}
31... Qd5 {[%clk 0:00:19.5]} 32. Kc2 {[%clk 0:00:31.2]} 32... Kg6 {[%clk
0:00:17.4]} 33. b3 {[%clk 0:00:26.5]} 33... Qg2 {[%clk 0:00:14.9]} 34. Re2
{[%clk 0:00:21.3]} 34... Nf3 {[%clk 0:00:14.2]} 35. Nb5 {[%clk 0:00:12.6]} 35...
f6 {[%clk 0:00:12.1]} 36. Nc7 {[%clk 0:00:10.7]} 36... Ne5 {[%clk 0:00:12]} 37.
Ne6 {[%clk 0:00:09.8]} 37... Qf3 {[%clk 0:00:12.1]} 38. Nd4 {[%clk 0:00:09.4]}
38... Qd5 {[%clk 0:00:09.8]} 39. c4 {[%clk 0:00:07.8]} 39... Qc5 {[%clk
0:00:09]} 40. Ne6 {[%clk 0:00:07.8]} 40... Qa3 {[%clk 0:00:08.8]} 41. Nf4+
{[%clk 0:00:08.4]} 41... Kf5 {[%clk 0:00:08.6]} 42. Kc3 {[%clk 0:00:03.3]} 42...
Qb4+ {[%clk 0:00:08.1]} 43. Kb2 {[%clk 0:00:03.6]} 43... Nxc4+ {[%clk
0:00:07.9]} 44. Kc2 {[%clk 0:00:04.2]} 44... Na3+ {[%clk 0:00:07.9]} 45. Kb2
{[%clk 0:00:04.1]} 45... Nc4+ {[%clk 0:00:07.2]} 46. Kc2 {[%clk 0:00:04.7]}
46... Ne5 {[%clk 0:00:07.2]} 47. Rd5 {[%clk 0:00:03.9]} 47... Qe7 {[%clk
0:00:05.2]} 48. Rb5 {[%clk 0:00:02.5]} 48... Qc7+ {[%clk 0:00:05.4]} 49. Kb1
{[%clk 0:00:03.3]} 49... b6 {[%clk 0:00:05.6]} 50. Nd5 {[%clk 0:00:03.7]} 50...
Qc6 {[%clk 0:00:05.1]} 51. Ne3+ {[%clk 0:00:04.1]} 51... Kg6 {[%clk 0:00:04.8]}
52. Nc2 {[%clk 0:00:04.1]} 52... Nd3 {[%clk 0:00:04.3]} 53. Re3 {[%clk
0:00:01.5]} 53... Nb4 {[%clk 0:00:04.4]} 54. Nxb4 {[%clk 0:00:01.6]} 54... axb4
{[%clk 0:00:05.3]} 55. Rd3 {[%clk 0:00:02]} 55... Qe4 {[%clk 0:00:04.8]} 56. Kc2
{[%clk 0:00:02.2]} 56... Qe2+ {[%clk 0:00:04.8]} 57. Rd2 {[%clk 0:00:02.9]}
57... Qe4+ {[%clk 0:00:04.7]} 58. Kc1 {[%clk 0:00:03.6]} 58... Qc6+ {[%clk
0:00:04.5]} 59. Kd1 {[%clk 0:00:03.1]} 59... Qc3 {[%clk 0:00:04.6]} 60. Rxb6
{[%clk 0:00:02.3]} 60... Qxb3+ {[%clk 0:00:04.7]} 61. Ke1 {[%clk 0:00:02.7]}
61... Qxa4 {[%clk 0:00:05]} 62. Rb7 {[%clk 0:00:03.4]} 62... Qa1+ {[%clk
0:00:04.3]} 63. Ke2 {[%clk 0:00:04]} 63... Qd4 {[%clk 0:00:04.2]} 64. Kd1 {[%clk
0:00:04.7]} 64... Qc3 {[%clk 0:00:04]} 65. Rdd7 {[%clk 0:00:04.8]} 65... b3
{[%clk 0:00:04]} 66. Rxg7+ {[%clk 0:00:04.4]} 66... Kf5 {[%clk 0:00:04.9]} 67.
Rgc7 {[%clk 0:00:05.1]} 67... Qd3+ {[%clk 0:00:04.6]} 68. Kc1 {[%clk 0:00:05.5]}
68... Qf1+ {[%clk 0:00:04.2]} 69. Kb2 {[%clk 0:00:05.4]} 69... Qxf2+ {[%clk
0:00:05.1]} 70. Ka3 {[%clk 0:00:05.6]} 70... Qxg3 {[%clk 0:00:06]} 71. Rb5+
{[%clk 0:00:06.2]} 71... Kg6 {[%clk 0:00:05.6]} 72. Rxb3 {[%clk 0:00:06.7]}
72... Qxc7 {[%clk 0:00:05]} 0-1